Cogmind - Beta 10.2 @@@ ROGUE MODE // 2022.02.04 @ 10:14:18 Player: Conner Result: Destroyed by S-10 Pest with Light Assault Rifle Performance ------------- Evolutions (2) 1000 Regions Visited (4) 800 Robots Destroyed (63) 315 Value Destroyed (1467) 1467 Prototype IDs (6) 120 Alien Tech Used (0) 0 Bonus (0) 0 TOTAL SCORE: 3702 Bonus ------- None Cogmind --------- Core Integrity 0/550 Matter 53/300 Energy 100/100 System Corruption 0% Temperature Cool (18) Movement Core (350) Ox6 Location -8/Storage Parts ------- > --- POWER (1) -------- (None) > --- PROPULSION (3) --- (None) > --- UTILITY (5) ------ Large Storage Unit Improved Terrain Scanner Improved Utility Shielding Improved Utility Shielding > --- WEAPON (2) ------- (None) > --- INVENTORY (10) --- Light Angular Momentum Engine Cryofiber Web Advanced Heat Sink Large Storage Unit Advanced Targeting Computer Recoil Stabilizer Improved Utility Shielding Improved Utility Shielding Gauss Cannon Peak State ------------ > --- POWER ------------ Heavy Ion Engine > --- PROPULSION ------- Aluminum Leg Carbon-fiber Leg Carbon-fiber Leg > --- UTILITY ---------- Large Storage Unit Improved Terrain Scanner Transmission Jammer Improved Utility Shielding Improved Utility Shielding > --- WEAPON ----------- Gauss Cannon Gauss Cannon > --- INVENTORY -------- Heavy Ion Engine Light Deuterium Engine Light Nuclear Core Advanced Heat Sink Large Storage Unit Advanced Targeting Computer Improved Utility Shielding Improved Utility Shielding Gauss Cannon Gauss Cannon [Rating: 33] Favorites ----------- Power Heavy Ion Engine Engine Heavy Ion Engine Power Core Light Nuclear Core Propulsion Wheel Leg Carbon-fiber Leg Wheel Wheel Utility Improved Utility Shielding Device Transmission Jammer Storage Large Storage Unit Processor Signal Interpreter Hackware Hacking Suite Protection Improved Utility Shielding Weapon Gauss Cannon Energy Gun Electrolaser Energy Cannon Ion Cannon Ballistic Gun High-powered Shotgun Ballistic Cannon Gauss Cannon Launcher Grenade Launcher Special Melee Weapon Datajack Build | -11 -10 -9 -8 -8 ------- Run | Scr Mat Mat Mat Sto Slots Evolved 4 | . . 2 2 . Power . | . . . . . Propulsion 1 | . . . 1 . Utility 3 | . . 2 1 . Weapon . | . . . . . Parts Attached 81 | 9 12 34 25 1 Power 12 | 1 2 6 2 1 Engine 11 | 1 2 6 2 . Core 1 | . . . . 1 Reactor . | . . . . . Propulsion 24 | 3 3 10 8 . Treads . | . . . . . Leg 7 | . . . 7 . Wheel 17 | 3 3 10 1 . Hover . | . . . . . Flight . | . . . . . Utility 19 | 3 2 8 6 . Device 4 | 1 . 2 1 . Storage 5 | 1 . 2 2 . Processor 4 | 1 1 2 . . Hackware 1 | . 1 . . . Protection 5 | . . 2 3 . Artifact . | . . . . . Weapon 26 | 2 5 10 9 . Energy Gun 8 | 2 1 4 1 . Energy Cannon 3 | . . . 3 . Ballistic Gun 2 | . . . 2 . Ballistic Cannon 10 | . 2 5 3 . Launcher 1 | . 1 . . . Special Weapon . | . . . . . Impact Weapon . | . . . . . Slashing Weapon . | . . . . . Piercing Weapon . | . . . . . Special Melee Weapon 2 | . 1 1 . . Unidentified Prototypes 2 | . . 2 . . Parts Lost 24 | . . 5 13 6 Power 4 | . . 1 1 2 Propulsion 9 | . . 2 4 3 Utility 1 | . . . 1 . Weapon 10 | . . 2 7 1 Highest Loss Streak 6 | . . 2 4 6 Average Slot Usage (%) 95 | . 98 97 94 83 Engine 10 | . 14 10 8 7 Leg 7 | . . . 18 25 Wheel 16 | . 28 21 4 . Device 11 | . 7 8 17 13 Storage 5 | . . 7 9 9 Processor 8 | . 14 13 . . Hackware 5 | . 4 11 2 . Protection 6 | . . 2 14 18 Energy Gun 6 | . 9 6 5 . Energy Cannon 1 | . . . 3 . Ballistic Cannon 11 | . 10 15 7 9 Special Melee Weapon 1 | . 4 . . . Naked Turns . | . . . . . Heaviest Build 44 | 13 11 33 44 37 Greatest Support 40 | 32 26 32 40 35 Greatest Overweight (x) 11 | . . 2 11 1 Average Overweight (x) . | . . . . 1 Largest Inventory Capacity 10 | 6 4 10 10 10 Average Capacity 7 | 5 4 7 10 10 Most Carried 10 | 6 4 10 10 10 Average Carried 7 | 2 3 7 9 9 Final Capacity 10 | 4 4 10 10 10 Final Carried 10 | 3 4 10 9 9 Class Distribution -------------------- 60% | Mutant 39% | Scavenger-Mutant Dominant Class ---------------- Mutant | -10/Materials Scavenger-Mutant | -9/Materials Mutant | -8/Materials Mutant | -8/Storage Resources | -11 -10 -9 -8 -8 ----------- Run | Scr Mat Mat Mat Sto Matter Collected 1655 | 280 163 623 569 20 Remotely 30 | . . 30 . . Salvage Created 1725 | 117 248 636 724 . Parts 136 | 6 22 56 52 . Haulers Intercepted 4 | . 1 1 2 . Recyclers Shooed . | . . . . . Parts Field Recycled . | . . . . . Retrieved Matter . | . . . . . Parts Self-Destructed . | . . . . . Prevented . | . . . . . Kills | -11 -10 -9 -8 -8 ------- Run | Scr Mat Mat Mat Sto Combat Hostiles Destroyed 36 | . 6 14 15 1 Guns 9 | . 3 1 5 . Cannons 25 | . 1 13 10 1 AOE 2 | . 2 . . . Classes Destroyed 10 | 2 5 3 . . Worker 7 | . . 5 2 . Builder 3 | . 1 . 2 . Tunneler 4 | 2 . 2 . . Hauler 4 | . 1 1 2 . Recycler 2 | 1 . 1 . . Operator 3 | . 1 2 . . Watcher 4 | . 1 2 1 . Swarmer 10 | . . 6 3 1 Grunt 17 | . 6 3 8 . Sentry 9 | . . 5 4 . Best Kill Streak 6 | 2 6 3 5 1 Combat Bots Only 4 | . 3 3 4 1 Max Kills in Single Turn 2 | 1 2 1 2 1 Gunslinging . | . . . . . Exploded 1 | . 1 . . . Melee . | . . . . . Uniques/NPCs Destroyed . | . . . . . Combat | -11 -10 -9 -8 -8 -------- Run | Scr Mat Mat Mat Sto Damage Taken 3779 | . 181 1066 1878 654 Core 829 | . 44 235 365 185 Absorbed by Shields . | . . . . . Core Remaining (%) 74 | 100 82 41 . . Volleys Fired 187 | 7 23 86 65 6 Largest 2 | 2 2 2 2 1 Hottest 126 | 90 85 126 126 48 Shots Fired 324 | 14 34 140 130 6 Gun 85 | 14 17 26 28 . Cannon 230 | . 8 114 102 6 Launcher 9 | . 9 . . . Special . | . . . . . Kinetic 203 | . 8 114 75 6 Thermal 81 | 7 2 17 55 . Explosive 9 | . 9 . . . Electromagnetic 31 | 7 15 9 . . Robot Hit Streak 8 | 4 8 7 7 2 Robot Miss Streak 7 | 1 2 7 4 3 Penetration Max 1 | . . . . 1 Secondary Targets . | . . . . . Shots Hit Robots 172 | 8 31 72 59 2 Core Hits 81 | 3 15 30 30 3 Critical Hits 4 | . . . 3 1 Critical Kills . | . . . . . Critical Parts Destroyed 4 | . . . 3 1 Melee Attacks 18 | . 13 5 . . Impact . | . . . . . Slashing . | . . . . . Piercing . | . . . . . Sneak Attacks 12 | . 12 . . . Combat Hostiles . | . . . . . Follow-up Attacks . | . . . . . Damage Inflicted 3464 | 94 443 1278 1522 127 Guns 824 | 94 147 267 316 . Cannons 2341 | . 57 1011 1178 95 Explosions 239 | . 239 . . . Melee . | . . . . . Ramming 60 | . . . 28 32 Kinetic 2073 | . 57 1011 910 95 Thermal 793 | 25 24 160 584 . Explosive 239 | . 239 . . . Electromagnetic 299 | 69 123 107 . . Impact . | . . . . . Slashing . | . . . . . Piercing . | . . . . . Highest Corruption . | . . . . . Average Corruption . | . . . . . Corruption Purged . | . . . . . Overload Shots . | . . . . . Overflow Damage 30 | . 2 22 2 4 Projectiles 28 | . . 22 2 4 Explosions 2 | . 2 . . . Melee . | . . . . . Knockbacks 15 | . . 8 7 . Impact . | . . . . . Kinetic 15 | . . 8 7 . Secondary . | . . . . . Self-Inflicted Damage 65 | . 48 . 13 4 Shots 2 | . 2 . . . Rammed 6 | . . . 2 4 Targets Rammed 12 | . . . 2 10 Kicked 6 | . . . . 6 Crushed . | . . . . . Highest Temperature 393 | 90 78 264 393 . Average Temperature 65 | 47 23 42 93 . Received Heat Transfer 1089 | . 72 180 747 90 Effects 4 | . . 3 1 . Interference 3 | . . 3 . . Damage (minor) 1 | . . . 1 . Siege Activations . | . . . . . Robots Corrupted . | . . . . . Combat Hostiles . | . . . . . Parts Fried . | . . . . . Impact Corruptions . | . . . . . Robots Melted . | . . . . . Combat Hostiles . | . . . . . Parts Melted 2 | . 1 1 . . Heat Transferred 1628 | 74 74 370 1110 . Parts Sabotaged . | . . . . . Parts Stolen . | . . . . . Parts Stripped . | . . . . . Power Chain Reactions . | . . . . . Missiles Intercepted . | . . . . . Alert | -11 -10 -9 -8 -8 ------- Run | Scr Mat Mat Mat Sto Peak Influence 309 | 15 228 264 309 131 Initial 74 | . 9 18 70 74 Average 107 | 7 73 125 131 88 Maximum Alert Level 1 | . 1 1 1 . Low Security (%) 79 | 100 76 74 81 100 Level 1 20 | . 23 25 18 . Level 2 . | . . . . . Level 3 . | . . . . . Level 4 . | . . . . . Level 5 . | . . . . . High Security . | . . . . . Max Security . | . . . . . Squads Dispatched 8 | . 5 1 1 1 Investigation 2 | . 2 . . . Extermination . | . . . . . Reinforcement 6 | . 3 1 1 1 Assault . | . . . . . Garrison . | . . . . . Intercept . | . . . . . Construction Impeded 1 | . . . . 1 Haulers Reinforced . | . . . . . Stealth | -11 -10 -9 -8 -8 --------- Run | Scr Mat Mat Mat Sto Distress Signals 7 | . 1 4 1 1 Communications Jammed 10 | . . . 10 . Distress Signals 10 | . . . 10 . Times Spotted 77 | . 13 23 33 8 Peak Tracking Total 8 | . 3 4 8 8 Tactical Retreats 7 | . . 1 6 . Traps | -11 -10 -9 -8 -8 ------- Run | Scr Mat Mat Mat Sto Traps Triggered 5 | . 2 1 1 1 Indirectly . | . . . . . Trap Hack Attempts . | . . . . . Triggered . | . . . . . Disarmed . | . . . . . Reprogrammed . | . . . . . Reused . | . . . . . Traps Extracted . | . . . . . Installed . | . . . . . Triggered . | . . . . . Machines | -11 -10 -9 -8 -8 ---------- Run | Scr Mat Mat Mat Sto Machines Disabled 7 | . 1 2 3 1 Max in Single Turn 1 | . 1 1 1 1 Machines Sabotaged . | . . . . . Garrisons Compromised . | . . . . . Overloaded Fab Kills . | . . . . . Fab Network Shutdowns . | . . . . . Hacking | -11 -10 -9 -8 -8 --------- Run | Scr Mat Mat Mat Sto Machines Accessed 9 | . 2 2 5 . Terminals 8 | . 2 2 4 . Fabricators . | . . . . . Repair Stations 1 | . . . 1 . Recycling Units . | . . . . . Scanalyzers . | . . . . . Garrison Access . | . . . . . Total Hacks 35 | . 8 4 23 . Successful 21 | . 5 2 14 . Failed 14 | . 3 2 9 . Catastrophic 2 | . 1 . 1 . Database Lockouts . | . . . . . Manual 29 | . 8 2 19 . Terminals 31 | . 8 4 19 . Fabricators . | . . . . . Repair Stations 4 | . . . 4 . Recycling Units . | . . . . . Scanalyzers . | . . . . . Garrison Access . | . . . . . Terminal Hacks 7 | . 1 1 5 . Prototype ID Bank 2 | . . 1 1 . Terminal Index 2 | . 1 . 1 . Alert Level 1 | . . . 1 . Unreport Threat 1 | . . . 1 . Locate Traps 1 | . . . 1 . Fabricator Hacks . | . . . . . Repair Station Hacks 4 | . . . 4 . Scan Component 2 | . . . 2 . Repair 2 | . . . 2 . Recycling Unit Hacks . | . . . . . Scanalyzer . | . . . . . Garrison Access Hacks . | . . . . . Unauthorized Hacks 10 | . 4 1 5 . Terminals 10 | . 4 1 5 . Track 4 | . 2 . 2 . Botnet 6 | . 2 1 3 . Fabricators . | . . . . . Repair Stations . | . . . . . Recycling Units . | . . . . . Scanalyzers . | . . . . . Garrison Access . | . . . . . Data Cores Recovered . | . . . . . Used . | . . . . . Hacking Detections 9 | . 2 2 5 . Full Trace Events . | . . . . . Feedback Events . | . . . . . Feedback Blocked . | . . . . . Robot Schematics Acquired . | . . . . . Robots Built . | . . . . . Matter . | . . . . . Time . | . . . . . Total Robot Build Rating . | . . . . . Part Schematics Acquired . | . . . . . Parts Built . | . . . . . Matter . | . . . . . Time . | . . . . . Total Part Build Rating . | . . . . . Parts Repaired 2 | . . . 2 . Time 64 | . . . 64 . Parts Recycled . | . . . . . Recycled Matter . | . . . . . Retrieved Matter . | . . . . . Retrieved Components . | . . . . . Parts Scanalyzed . | . . . . . Part Schematics Acquired . | . . . . . Parts Damaged . | . . . . . Bothacking | -11 -10 -9 -8 -8 ------------ Run | Scr Mat Mat Mat Sto Used RIF Installer . | . . . . . Robots Hacked 7 | . 6 1 . . Non-combat 6 | . 6 . . . Combat 1 | . . 1 . . Robot Hacks Applied 9 | . 8 1 . . parse_system 1 | . . 1 . . no_distress 6 | . 6 . . . find_recycling 1 | . 1 . . . check_alert 1 | . 1 . . . Relay Couplers Released . | . . . . . Robots Rewired . | . . . . . Allies Hacked . | . . . . . Hacks Repelled . | . . . . . Allies | -11 -10 -9 -8 -8 -------- Run | Scr Mat Mat Mat Sto Total Allies . | . . . . . Largest Group . | . . . . . Highest-Rated Group . | . . . . . Highest-Rated Ally . | . . . . . Total Orders . | . . . . . Ally Attacks . | . . . . . Total Damage . | . . . . . Kills . | . . . . . Allies Corrupted . | . . . . . Allies Melted . | . . . . . Intel | -11 -10 -9 -8 -8 ------- Run | Scr Mat Mat Mat Sto Robot Analysis Total . | . . . . . Derelict Logs Recovered . | . . . . . Drone Launches . | . . . . . Drone Recoveries . | . . . . . Exploration | -11 -10 -9 -8 -8 ------------- Run | Scr Mat Mat Mat Sto Turns Passed 3921 | 110 1084 1230 1216 281 Spaces Moved 2277 | 66 526 973 598 114 Core 4 | 2 . . 2 . Treads . | . . . . . Legs 596 | . . . 482 114 Wheels 1677 | 64 526 973 114 . Hover . | . . . . . Flight . | . . . . . Fastest Speed 50 | 50 80 80 90 150 Average Speed 103 | 91 83 92 130 150 Slowest Speed 600 | 100 90 110 600 150 Overloaded Moves . | . . . . . Propulsion Burnouts . | . . . . . Robots Hopped . | . . . . . Cave-ins Triggered . | . . . . . Exploration Rate (%) 34 | 5 53 49 51 15 Regions Visited 4 Branch Regions 1 Pre-discovered Areas . | . . . . . Known Exits Taken 1 | . . 1 . . Unknown Exits Taken 3 | 1 1 . 1 . Scrap Searched . | . . . . . Spaces Dug 10 | . . . 10 . Terrain Destroyed 119 | . 47 3 67 2 Melee . | . . . . . Projectile 49 | . . 3 44 2 AOE 70 | . 47 . 23 . Terrain Rammed . | . . . . . Walls Destroyed . | . . . . . Machines Disabled . | . . . . . Actions | -11 -10 -9 -8 -8 --------- Run | Scr Mat Mat Mat Sto Total 3513 | 98 1122 1169 913 211 Wait 811 | 8 539 3 185 76 Move 2273 | 65 525 972 597 114 Hop . | . . . . . Pick Up 57 | 5 1 30 20 1 Fast Attach 37 | 8 4 13 12 . Attach 12 | . . 3 8 1 Detach 1 | . 1 . . . Swap 32 | 1 8 18 5 . Drop 71 | 4 8 39 19 1 Fire 187 | 7 23 86 65 6 Melee 18 | . 13 5 . . Ram 3 | . . . 2 1 Kick 9 | . . . . 9 Crush . | . . . . . Escape Stasis . | . . . . . Rewire 2 | . . . . 2 Trap . | . . . . . Miscellaneous . | . . . . . Route ------- -11/Scrapyard -10/Materials (discovered 2 exits: *Mat / [*Min]) -9/Materials (discovered 2 exits: *Mat x2) -8/Materials (discovered 2 exits: [*Fac] / [*Sto]) -8/Storage History --------- Turn | Location | Event 17 | -11/Scrapyard | Discovered new exit (range 15) 111 | -11/Scrapyard | Entered Materials 325 | -10/Materials | Discovered new exit (range 16) 673 | -10/Materials | Build established: Mutant 1106 | -10/Materials | Build established: Scavenger-Mutant 1174 | -10/Materials | Discovered new exit (range 16) 1195 | -10/Materials | Entered another Materials area 1195 | -9/Materials | Evolved 2 slots: Utility x2 1581 | -9/Materials | Discovered new exit (range 7) 1586 | -9/Materials | Identified exit to Materials 2056 | -9/Materials | Core integrity fell below 50% 2173 | -9/Materials | Discovered exit to Materials (range 7) 2425 | -9/Materials | Entered another Materials area 2425 | -8/Materials | Evolved 2 slots: Propulsion x1, Utility x1 2582 | -8/Materials | Repaired Wheel 2603 | -8/Materials | Build established: Mutant 2622 | -8/Materials | Repaired Imp. Utility Shielding 2721 | -8/Materials | Lost 3 parts (1n2w) 3019 | -8/Materials | Build established: Scavenger-Mutant 3146 | -8/Materials | Discovered new exit (range 15) 3351 | -8/Materials | Build established: Mutant 3496 | -8/Materials | Core integrity fell below 50% 3523 | -8/Materials | Lost 4 parts (1p3n) 3616 | -8/Materials | Discovered new exit (range 6) 3641 | -8/Materials | Entered Storage 3901 | -8/Storage | Core integrity fell below 20% 3922 | -8/Storage | Destroyed by S-10 Pest with Light Assault Rifle Last Messages --------------- 03897_ Slug penetrates S-10 Pest. 03897_ S-10 Pest destroyed. 03897_ U-05 Engineer suffers critical hit. 03897_ Destroyed Lgt. Ion Engine. 03899_ ALERT: Construction progress impeded, dispatching reinforcements to local area. 03905_ K-01 Serf collects debris. 03909_ Kicked S-10 Pest out of the way. 03911_ Carbon-fiber Leg destroyed. 03911_ Kicked S-10 Pest out of the way. 03913_ Slammed into S-10 Pest. 03913_ Destabilizing: Core damaged (-16). 03915_ Kicked S-10 Pest out of the way. 03917_ K-01 Serf collects debris. 03919_ Slammed into S-10 Pest. 03920_ Aluminum Leg destroyed. 03921_ Slammed into Y-45 Defender. 03922_ Gauss Cannon destroyed. 03922_ Lgt. Nuclear Core destroyed. 03922_ K-01 Serf collects debris. Map ----- +----------------------------------------------------+ | | | ?????????????????????????????????????? | | ????????????#????????????????????????? | | ?????????????????#???????????????????? | | ????????????????##???????????????????? | | ??######################?????????????? | | ????# ????????????? | | ????# ????????????? | | #???# ????????????? | | ????######+########?+????#???????????? | | ?????# # ? ? ????????????????? | | ?#??## """ """ # ????????????????????? | | ?????# """ """ #??? ?? ??????????????? | | ?#???# """ """ #?"???????????????????? | | ?#???# # "??????????????????? | | ???#?# #? "? ???##? ?????????? | | ?????# # ""?????#?? ????????? | | ??##?# #? ??????????????????? | | ?????#########+#? ?????#?#??????????? | | ?????#??###### ##+#??????#???????????? | | ?????#??# # #??#?#?#??? ???????? | | ????????# # ##?????? ??????????? | | ?? ?"??# # ##????????????? ???? | | ??? ????# # ########???????????? | | ##??????# sY# ; t # ??????????? | | ??? ? ??# Y @ tkk # ??????????? | | ?? ?????# s # ! #??#????????? | | ?#????######## Y #?????#?????? | | ??#?# ##????????"?? | | ???## ######### # k] #?#?? ??????? | | ???#???##?#######+########???????????? | | ???# #### #????????? ??????? | | ???# / """" #????????#??????? | | ??## #### "!! #?????#??????????? | | ????#????## "]]" #????????????????? | | ????? ????# "!/" ##??????#????????? | | ??#???????# "!!" #??#?????????????? | | ??????????# """" #??#?????????????? | | ????#?????# ##???????????????? | | ??????????#####/#####??? ????????????? | | ???????? ????? ##???????????????????? | | #????#???? ??? #??? ???? ? ?????????? | | ?????????? ?? #??????#???? ????????? | | ????????????? #????? ??????????????? | | ????????? ??T" #????????????????????? | | ????????#??? #? "???#?????????????? | | ??#???##? ? +????????????????????? | | ???????????#### #????????????????????? | | ??????????????? ?????????????????????? | | ????????????#??/?????????????????????? | +----------------------------------------------------+ Best States ------------- Heat Dissipation 31 Energy Generation 14 Energy Capacity 280 Matter Stores 300 Matter Capacity 300 Sight Range 16 Terrain Scan Range 16 Terrain Scan Density 85 Jamming Range 8 Armor Coverage 150 Utility Shielding 66 Evasion (%) 44 Offensive Hacking 10 Item Schematics ----------------- None Robot Schematics ------------------ None Fabricated ------------ Nothing Alien Tech Used ----------------- None Achievements -------------- No Signal Total Silence Challenges ------------ None Game ------ Seed SalvageRestorationDatajack Manual? 0 Play Time 00:33:16 Cumulative 31.2 hours Start 2022.02.04 @ 09:41:21 End 2022.02.04 @ 10:14:18 Sessions 1 Manual Loads 0 Difficulty Rogue Special Mode None Game No. 47 Rogue 47 Adventurer 0 Explorer 0 Win Type - Total 0 Types 0/0/0/0/0/0/0/0/0 Lore% 45 Gallery% 42 Achievement% 36 Wizard Run 0 Options --------- ASCII 0 Keyboard 0 Movement Numpad Keybinds 0 Fullscreen 1 Font 24/Smallcaps Map View 76x50 Tactical HUD 1 Map Filters NONE Filters NONE Steam 1 RUN: fb136959-61ca-4897-80c4-02f309449266